fUSD/lending_fUSD_20250916
["ID","MTS","AMOUNT","RATE_DAILY","PERIOD"]
[385825606,1758057078016,-400.0,0.00032054,6]
[385825607,1758057078025,-625.93,0.00032054,6]
[385825608,1758057078034,-400.0,0.00032054,6]
[385825609,1758057078044,-791.37,0.00032054,6]
[385825610,1758057078054,-609.54,0.00032054,6]
[385825611,1758057078063,-510.33,0.00032054,6]
[385825612,1758057078073,-556.43,0.00032054,6]
[385825613,1758057078082,-745.45,0.00032054,6]
[385825614,1758057078092,-400.0,0.00032054,6]
[385825615,1758057078102,-400.0,0.00032054,6]
[385825616,1758057078112,-438.34,0.00032054,6]
[385825617,1758057078121,-1260.15,0.00032054,6]
[385825618,1758057078132,-636.26,0.00032054,6]
[385825619,1758057078141,-400.0,0.00032054,6]
[385825620,1758057078151,-400.0,0.00032054,6]
[385825621,1758057078161,-461.54,0.00032054,6]
[385825622,1758057078170,-400.0,0.00032054,6]
[385825623,1758057078181,-479.5,0.00032054,6]
[385825624,1758057078190,-587.63,0.00032054,6]
[385825625,1758057078200,-1289.38,0.00032054,6]
[385825626,1758057078209,-400.0,0.00032054,6]
[385825627,1758057078219,-400.0,0.00032054,6]
[385825628,1758057078229,-506.39,0.00032054,6]
[385825629,1758057078238,-400.0,0.00032054,6]
[385825630,1758057078248,-462.29,0.00032054,6]
[385825631,1758057078258,-400.0,0.00032054,6]
[385825632,1758057078268,-400.0,0.00032054,6]
[385825633,1758057078278,-400.0,0.00032054,6]
[385825634,1758057078288,-400.0,0.00032054,6]
[385825635,1758057078298,-400.0,0.00032054,6]
[385825636,1758057078308,-690.9,0.00032054,6]
[385825637,1758057078319,-449.23,0.00032054,5]
[385825638,1758057078328,-1146.39,0.00032054,6]
[385825639,1758057078338,-400.0,0.00032054,6]
[385825640,1758057078347,-684.79,0.00032054,6]
[385825641,1758057078357,-400.0,0.00032054,6]
[385825642,1758057078366,-400.0,0.00032054,6]
[385825643,1758057078376,-400.0,0.00032054,6]
[385825644,1758057078385,-400.0,0.00032054,6]
[385825645,1758057078395,-843.08,0.00032054,6]
[385825646,1758057078405,-400.0,0.00032054,6]
[385825647,1758057078414,-400.0,0.00032054,6]
[385825648,1758057078424,-400.0,0.00032054,6]
[385825649,1758057078434,-400.0,0.00032054,6]
[385825650,1758057078444,-400.0,0.00032054,6]
[385825651,1758057078454,-400.0,0.00032054,6]
[385825652,1758057078464,-400.0,0.00032054,6]
[385825653,1758057078474,-497.6,0.00032054,6]
[385825654,1758057078483,-400.0,0.00032054,6]
[385825655,1758057078493,-400.0,0.00032054,6]
[385825656,1758057078503,-400.0,0.00032054,6]
[385825657,1758057078513,-400.0,0.00032054,6]
[385825658,1758057078523,-400.0,0.00032054,6]
[385825659,1758057078533,-400.0,0.00032054,6]
[385825660,1758057078543,-400.0,0.00032054,6]
[385825661,1758057078552,-400.0,0.00032054,6]
[385825662,1758057078562,-400.0,0.00032054,6]
[385825663,1758057078571,-2611.36,0.00032054,6]
[385825664,1758057078581,-400.0,0.00032054,6]
[385825665,1758057078591,-400.0,0.00032054,6]
[385825666,1758057078600,-400.0,0.00032054,6]
[385825667,1758057078610,-400.0,0.00032054,6]
[385825668,1758057078619,-553.62,0.00032054,6]
[385825669,1758057078629,-467.85,0.00032054,6]
[385825670,1758057078638,-400.0,0.00032054,6]
[385825671,1758057078648,-836.09,0.00032054,6]
[385825672,1758057078658,-400.0,0.00032054,6]
[385825673,1758057078668,-400.0,0.00032054,6]
[385825674,1758057078678,-400.0,0.00032054,6]
[385825675,1758057078687,-1289.35,0.00032054,6]
[385825676,1758057078697,-400.0,0.00032054,6]
[385825677,1758057078706,-400.0,0.00032054,6]
[385825678,1758057078715,-430.5,0.00032054,6]
[385825679,1758057078725,-400.0,0.00032054,6]
[385825680,1758057078735,-372.88307707,0.00032054,6]
[385825681,1758057078745,-400.0,0.00032054,6]
[385825682,1758057078754,-479.52,0.00032054,6]
[385825683,1758057078763,-400.0,0.00032054,6]
[385825684,1758057078773,-441.74,0.00032054,6]
[385825685,1758057078783,-400.0,0.00032054,6]
[385825686,1758057078792,-507.91,0.00032054,6]
[385825687,1758057078802,-400.0,0.00032054,6]
[385825688,1758057078812,-225.95,0.00032054,6]
[385825689,1758057078821,-2216.47,0.00032054,6]
[385825690,1758057078831,-547.58,0.00032054,6]
[385825691,1758057078841,-400.0,0.00032054,6]
[385825692,1758057078850,-400.0,0.00032054,6]
[385825693,1758057078860,-400.0,0.00032054,6]
[385825694,1758057078870,-1300.0,0.00032076,7]
[385825695,1758057078880,-780.46257145,0.00032083,15]
[385825696,1758057078889,-11290.01160898,0.00032092,2]
[385825697,1758057078902,-168.49,0.00032148,2]
[385825698,1758057078911,-500.0,0.00032149,7]
[385825699,1758057078921,-245.0,0.000322,2]
[385825700,1758057078932,-700.0,0.00032228,7]
[385825701,1758057078943,-1300.0,0.00032231,7]
[385825702,1758057078953,-151.0,0.00032235,5]
[385825703,1758057078962,-1100.0,0.00032244,7]
[385825704,1758057078973,-839.09243417,0.00032282,2]
[385825705,1758057078983,-1545.52740505,0.00032294,2]
[385825706,1758057078993,-4705.0,0.00032301,2]
[385825707,1758057079003,-700.0,0.00032315,7]
[385825708,1758057079012,-3078.04363598,0.00032318,2]
[385825709,1758057079022,-300.0,0.00032327,10]
[385825710,1758057079031,-472.24,0.00032328,6]
[385825711,1758057079041,-400.0,0.00032328,6]
[385825712,1758057079051,-400.0,0.00032328,6]
[385825713,1758057079061,-400.0,0.00032328,6]
[385825714,1758057079070,-400.0,0.00032328,6]
[385825715,1758057079080,-542.97900484,0.00032328,6]
[385825716,1758057079089,-400.0,0.00032328,6]
[385825717,1758057079099,-400.0,0.00032328,6]
[385825718,1758057079109,-400.0,0.00032328,6]
[385825719,1758057079118,-392.76692987,0.00032328,6]
[385825720,1758057079128,-400.0,0.00032328,6]
[385825721,1758057079137,-400.0,0.00032328,6]
[385825722,1758057079146,-400.0,0.00032328,6]
[385825723,1758057079156,-400.0,0.00032328,6]
[385825724,1758057079166,-400.0,0.00032328,6]
[385825725,1758057079175,-400.0,0.00032328,6]
[385825726,1758057079185,-243.33105078,0.00032328,6]
[385825727,1758057079194,-400.0,0.00032328,6]
[385825728,1758057079204,-400.0,0.00032328,6]
[385825729,1758057079213,-595.04,0.00032328,6]
[385825730,1758057079222,-400.0,0.00032328,6]
[385825731,1758057079232,-408.76890269,0.00032328,6]
[385825732,1758057079241,-817.46,0.00032328,6]
[385825733,1758057079250,-400.0,0.00032328,6]
[385825734,1758057079259,-400.0,0.00032328,6]
[385825735,1758057079268,-426.72,0.00032328,6]
[385825736,1758057079278,-400.0,0.00032328,6]
[385825737,1758057079287,-400.0,0.00032328,6]
[385825738,1758057079296,-400.0,0.00032328,6]
[385825739,1758057079305,-400.0,0.00032328,6]
[385825740,1758057079314,-400.0,0.00032328,6]
[385825741,1758057079323,-400.0,0.00032328,6]
[385825742,1758057079333,-400.0,0.00032328,6]
[385825743,1758057079342,-400.0,0.00032328,6]
[385825744,1758057079352,-400.0,0.00032328,6]
[385825745,1758057079362,-400.0,0.00032328,6]
[385825746,1758057079438,-400.0,0.00032328,6]
[385825747,1758057079448,-466.82,0.00032328,6]
[385825748,1758057079458,-400.0,0.00032328,6]
[385825749,1758057079467,-436.46,0.00032328,6]
[385825750,1758057079476,-400.0,0.00032328,6]
[385825751,1758057079486,-400.0,0.00032328,6]
[385825752,1758057079495,-400.0,0.00032328,6]
[385825753,1758057079505,-400.0,0.00032328,6]
[385825754,1758057079513,-400.0,0.00032328,6]
[385825755,1758057079523,-400.0,0.00032328,6]
[385825756,1758057079533,-272.10371444,0.00032328,6]
[385825757,1758057079541,-400.0,0.00032328,6]
[385825758,1758057079551,-444.47,0.00032328,6]
[385825759,1758057079560,-400.0,0.00032328,6]
[385825760,1758057079570,-400.0,0.00032328,6]
[385825761,1758057079579,-400.0,0.00032328,6]
[385825762,1758057079589,-400.0,0.00032328,6]
[385825763,1758057079598,-400.0,0.00032328,6]
[385825764,1758057079607,-400.0,0.00032328,6]
[385825765,1758057079616,-400.0,0.00032328,6]
[385825766,1758057079626,-400.0,0.00032328,6]
[385825767,1758057079636,-400.0,0.00032328,6]
[385825768,1758057079645,-173.26404244,0.00032328,6]
[385825769,1758057079654,-400.0,0.00032328,6]
[385825770,1758057079664,-400.0,0.00032328,6]
[385825771,1758057079673,-400.0,0.00032328,6]
[385825772,1758057079683,-538.45,0.00032328,6]
[385825773,1758057079692,-400.0,0.00032328,6]
[385825774,1758057079701,-897.93,0.00032328,6]
[385825775,1758057079710,-400.0,0.00032328,6]
[385825776,1758057079720,-400.39,0.00032328,6]
[385825777,1758057079729,-477.46,0.00032328,6]
[385825778,1758057079739,-400.0,0.00032328,6]
[385825779,1758057079749,-319.66198043,0.00032328,6]
[385825780,1758057079758,-400.0,0.00032328,6]
[385825781,1758057079767,-546.54134626,0.00032328,6]
[385825782,1758057079777,-400.0,0.00032328,6]
[385825783,1758057079786,-400.0,0.00032328,6]
[385825784,1758057079795,-400.0,0.00032328,6]
[385825785,1758057079804,-400.0,0.00032328,6]
[385825786,1758057079814,-400.0,0.00032328,6]
[385825787,1758057079823,-420.75,0.00032328,6]
[385825788,1758057079833,-400.0,0.00032328,6]
[385825789,1758057079842,-400.0,0.00032328,6]
[385825790,1758057079851,-400.0,0.00032328,6]
[385825791,1758057079861,-2152.72,0.00032328,6]
[385825792,1758057079870,-446.8,0.00032328,6]
[385825793,1758057079880,-400.0,0.00032328,6]
[385825794,1758057079889,-400.0,0.00032328,6]
[385825795,1758057079901,-400.0,0.00032328,6]
[385825796,1758057079911,-400.0,0.00032328,6]
[385825797,1758057079920,-400.0,0.00032328,6]
[385825798,1758057079929,-400.0,0.00032328,6]
[385825799,1758057079939,-151.0,0.00032328,7]
[385825800,1758057079949,-400.0,0.00032328,6]
[385825801,1758057079958,-400.0,0.00032328,6]
[385825802,1758057079968,-400.0,0.00032328,6]
[385825803,1758057079978,-400.0,0.00032328,6]
[385825804,1758057079987,-400.0,0.00032328,6]
[385825805,1758057079997,-400.0,0.00032328,6]
[385825806,1758057080006,-400.0,0.00032328,6]
[385825807,1758057080016,-400.0,0.00032328,6]
[385825808,1758057080025,-400.0,0.00032328,6]
[385825809,1758057080034,-400.0,0.00032328,6]
[385825810,1758057080044,-542.53392392,0.00032328,6]
[385825811,1758057080053,-400.0,0.00032328,6]
[385825812,1758057080063,-400.0,0.00032328,6]
[385825813,1758057080072,-414.26,0.00032328,6]
[385825814,1758057080082,-465.28,0.00032328,6]
[385825815,1758057080091,-633.69,0.00032328,6]
[385825816,1758057080100,-400.0,0.00032328,6]
[385825817,1758057080109,-400.0,0.00032328,6]
[385825818,1758057080118,-400.0,0.00032328,6]
[385825819,1758057080127,-400.0,0.00032328,6]
[385825820,1758057080137,-400.0,0.00032328,6]
[385825821,1758057080147,-400.0,0.00032328,6]
[385825822,1758057080156,-400.0,0.00032328,6]
[385825823,1758057080165,-400.0,0.00032328,6]
[385825824,1758057080175,-400.0,0.00032328,6]
[385825825,1758057080184,-400.0,0.00032328,6]
[385825826,1758057080193,-400.0,0.00032328,6]
[385825827,1758057080202,-488.35,0.00032328,6]
[385825828,1758057080211,-400.0,0.00032328,6]
[385825829,1758057080220,-400.0,0.00032328,6]
[385825830,1758057080230,-400.0,0.00032328,6]
[385825831,1758057080239,-400.0,0.00032328,6]
[385825832,1758057080248,-400.0,0.00032328,6]
[385825833,1758057080257,-636.75,0.00032328,6]
[385825834,1758057080266,-400.0,0.00032328,6]
[385825835,1758057080275,-400.0,0.00032328,6]
[385825836,1758057080285,-400.0,0.00032328,6]
[385825837,1758057080295,-400.0,0.00032328,6]
[385825838,1758057080304,-400.0,0.00032328,6]
[385825839,1758057080313,-400.0,0.00032328,6]
[385825840,1758057080322,-400.0,0.00032328,6]
[385825841,1758057080332,-605.63,0.00032328,6]
[385825842,1758057080341,-400.0,0.00032328,6]
[385825843,1758057080350,-400.0,0.00032328,6]
[385825844,1758057080359,-535.77,0.00032328,6]
[385825845,1758057080368,-440.57236888,0.00032328,6]
[385825846,1758057080378,-400.0,0.00032328,6]
[385825847,1758057080387,-400.0,0.00032328,6]
[385825848,1758057080397,-400.0,0.00032328,6]
[385825849,1758057080406,-609.74,0.00032328,6]
[385825850,1758057080415,-400.0,0.00032328,6]
[385825851,1758057080424,-400.0,0.00032328,6]
[385825852,1758057080434,-400.0,0.00032328,6]
[385825853,1758057080443,-713.21,0.00032328,6]
[385825854,1758057080452,-470.05,0.00032328,6]
[385825855,1758057080461,-400.0,0.00032328,6]
[385825856,1758057080471,-400.0,0.00032328,6]
[385825857,1758057080481,-545.98,0.00032328,6]
[385825858,1758057080490,-435.33,0.00032328,6]
[385825859,1758057080499,-1275.84,0.00032328,6]
[385825860,1758057080509,-400.0,0.00032328,6]
[385825861,1758057080518,-400.0,0.00032328,6]
[385825862,1758057080527,-400.0,0.00032328,6]
[385825863,1758057080537,-400.0,0.00032328,6]
[385825864,1758057080546,-1307.51,0.00032328,6]
[385825865,1758057080555,-400.0,0.00032328,6]
[385825866,1758057080565,-400.0,0.00032328,6]
[385825867,1758057080575,-400.0,0.00032328,6]
[385825868,1758057080584,-585.24,0.00032328,6]
[385825869,1758057080593,-400.0,0.00032328,6]
[385825870,1758057080603,-400.0,0.00032328,6]
[385825871,1758057080613,-2094.1,0.00032328,6]
[385825872,1758057080623,-400.0,0.00032328,6]
[385825873,1758057080633,-400.0,0.00032328,6]
[385825874,1758057080642,-432.42,0.00032328,6]
[385825875,1758057080651,-426.07,0.00032328,6]
[385825876,1758057080661,-807.22,0.00032328,6]
[385825877,1758057080670,-400.0,0.00032328,6]
[385825878,1758057080679,-450.81,0.00032328,6]
[385825879,1758057080689,-400.0,0.00032328,6]
[385825880,1758057080698,-1320.54,0.00032328,6]
[385825881,1758057080707,-400.0,0.00032328,6]
[385825882,1758057080717,-400.0,0.00032328,6]
[385825883,1758057080726,-2034.04,0.00032328,6]
[385825884,1758057080736,-632.25,0.00032328,6]
[385825885,1758057080745,-171.49132465,0.00032328,6]
[385825886,1758057080754,-400.0,0.00032328,6]
[385825887,1758057080763,-400.0,0.00032328,6]
[385825888,1758057080773,-691.17,0.00032328,6]
[385825889,1758057080783,-400.0,0.00032328,6]
[385825890,1758057080793,-712.91,0.00032328,6]
[385825891,1758057080802,-400.0,0.00032328,6]
[385825892,1758057080811,-400.0,0.00032328,6]
[385825893,1758057080821,-400.0,0.00032328,6]
[385825894,1758057080830,-400.0,0.00032328,6]
[385825895,1758057080840,-531.95,0.00032328,6]
[385825896,1758057080849,-400.0,0.00032328,6]
[385825897,1758057080858,-400.0,0.00032328,6]
[385825898,1758057080867,-400.0,0.00032328,6]
[385825899,1758057080877,-400.0,0.00032328,6]
[385825900,1758057080886,-400.0,0.00032328,6]
[385825901,1758057080899,-400.0,0.00032328,6]
[385825902,1758057080909,-682.52,0.00032328,6]
[385825903,1758057080919,-400.0,0.00032328,6]
[385825904,1758057080928,-668.63,0.00032328,6]
[385825905,1758057080939,-2182.91,0.00032328,6]
[385825906,1758057080948,-400.0,0.00032328,6]
[385825907,1758057080957,-577.47,0.00032328,6]
[385825908,1758057080966,-400.0,0.00032328,6]
[385825909,1758057080977,-400.0,0.00032328,6]
[385825910,1758057080987,-400.0,0.00032328,6]
[385825911,1758057080997,-400.0,0.00032328,6]
[385825912,1758057081006,-613.19,0.00032328,6]
[385825913,1758057081017,-409.76,0.00032328,6]
[385825914,1758057081026,-1251.89,0.00032328,6]
[385825915,1758057081035,-400.0,0.00032328,6]
[385825916,1758057081045,-400.0,0.00032328,6]
[385825917,1758057081054,-1025.88,0.00032328,6]
[385825918,1758057081063,-400.0,0.00032328,6]
[385825919,1758057081072,-400.0,0.00032328,6]
[385825920,1758057081082,-400.0,0.00032328,6]
[385825921,1758057081091,-924.97,0.00032328,6]
[385825922,1758057081100,-593.74,0.00032328,6]
[385825923,1758057081110,-605.66,0.00032328,6]
[385825924,1758057081119,-516.31,0.00032328,6]
[385825925,1758057081128,-400.0,0.00032328,6]
[385825926,1758057081138,-400.0,0.00032328,6]
[385825927,1758057081147,-400.0,0.00032328,6]
[385825928,1758057081156,-400.0,0.00032328,6]
[385825929,1758057081166,-400.0,0.00032328,6]
[385825930,1758057081175,-1014.87,0.00032328,6]
[385825931,1758057081185,-400.0,0.00032328,6]
[385825932,1758057081194,-524.6,0.00032328,6]
[385825933,1758057081204,-400.0,0.00032328,6]
[385825934,1758057081220,-400.0,0.00032328,6]
[385825935,1758057081234,-493.11,0.00032328,6]
[385825936,1758057081243,-400.0,0.00032328,6]
[385825937,1758057081253,-412.98,0.00032328,6]
[385825938,1758057081269,-400.0,0.00032328,6]
[385825939,1758057081278,-588.1,0.00032328,6]
[385825940,1758057081288,-400.0,0.00032328,6]
[385825941,1758057081297,-400.0,0.00032328,6]
[385825942,1758057081307,-529.64,0.00032328,6]
[385825943,1758057081316,-574.6,0.00032328,6]
[385825944,1758057081326,-436.67,0.00032328,6]
[385825945,1758057081335,-400.0,0.00032328,6]
[385825946,1758057081344,-400.0,0.00032328,6]
[385825947,1758057081354,-983.68,0.00032328,6]
[385825948,1758057081363,-400.0,0.00032328,6]
[385825949,1758057081373,-410.54,0.00032328,6]
[385825950,1758057081383,-400.0,0.00032328,6]
[385825951,1758057081392,-400.0,0.00032328,6]
[385825952,1758057081402,-875.58,0.00032328,6]
[385825953,1758057081412,-457.79,0.00032328,6]
[385825954,1758057081421,-409.35,0.00032328,6]
[385825955,1758057081431,-400.0,0.00032328,6]
[385825956,1758057081440,-625.93,0.00032328,6]
[385825957,1758057081450,-400.0,0.00032328,6]
[385825958,1758057081459,-791.37,0.00032328,6]
[385825959,1758057081469,-609.54,0.00032328,6]
[385825960,1758057081478,-510.33,0.00032328,6]
[385825961,1758057081488,-556.43,0.00032328,6]
[385825962,1758057081497,-745.45,0.00032328,6]
[385825963,1758057081507,-400.0,0.00032328,6]
[385825964,1758057081517,-400.0,0.00032328,6]
[385825965,1758057081527,-438.34,0.00032328,6]
[385825966,1758057081537,-1260.15,0.00032328,6]
[385825967,1758057081547,-636.26,0.00032328,6]
[385825968,1758057081557,-400.0,0.00032328,6]
[385825969,1758057081566,-400.0,0.00032328,6]
[385825970,1758057081576,-461.54,0.00032328,6]
[385825971,1758057081585,-400.0,0.00032328,6]
[385825972,1758057081594,-479.5,0.00032328,6]
[385825973,1758057081603,-587.63,0.00032328,6]
[385825974,1758057081612,-1289.38,0.00032328,6]
[385825975,1758057081622,-400.0,0.00032328,6]
[385825976,1758057081633,-506.39,0.00032328,6]
[385825977,1758057081647,-400.0,0.00032328,6]
[385825978,1758057081657,-400.0,0.00032328,6]
[385825979,1758057081666,-462.29,0.00032328,6]
[385825980,1758057081676,-400.0,0.00032328,6]
[385825981,1758057081686,-400.0,0.00032328,6]
[385825982,1758057081696,-400.0,0.00032328,6]
[385825983,1758057081706,-400.0,0.00032328,6]
[385825984,1758057081716,-400.0,0.00032328,6]
[385825985,1758057081726,-690.9,0.00032328,6]
[385825986,1758057081735,-449.23,0.00032328,5]
[385825987,1758057081745,-1146.39,0.00032328,6]
[385825988,1758057081754,-400.0,0.00032328,6]
[385825989,1758057081765,-684.79,0.00032328,6]
[385825990,1758057081774,-400.0,0.00032328,6]
[385825991,1758057081783,-400.0,0.00032328,6]
[385825992,1758057081793,-400.0,0.00032328,6]
[385825993,1758057081803,-400.0,0.00032328,6]
[385825994,1758057081812,-203.804413,0.00032328,7]
[385825995,1758057081821,-843.08,0.00032328,6]
[385825996,1758057081831,-223.77768119,0.00032328,6]
[385825997,1758057081840,-400.0,0.00032328,6]
[385825998,1758057081851,-400.0,0.00032328,6]
[385825999,1758057081866,-400.0,0.00032328,6]
[385826000,1758057081876,-400.0,0.00032328,6]
[385826001,1758057081885,-400.0,0.00032328,6]
[385826002,1758057081897,-400.0,0.00032328,6]
[385826003,1758057081907,-497.6,0.00032328,6]
[385826004,1758057081917,-400.0,0.00032328,6]
[385826005,1758057081926,-483.61140925,0.00032328,6]
[385826006,1758057081936,-400.0,0.00032328,6]
[385826007,1758057081946,-400.0,0.00032328,6]
[385826008,1758057081956,-400.0,0.00032328,6]
[385826009,1758057081966,-400.0,0.00032328,6]
[385826010,1758057081977,-400.0,0.00032328,6]
[385826011,1758057081987,-400.0,0.00032328,6]
[385826012,1758057081997,-400.0,0.00032328,6]
[385826013,1758057082006,-2611.36,0.00032328,6]
[385826014,1758057082016,-400.0,0.00032328,6]
[385826015,1758057082026,-400.0,0.00032328,6]
[385826016,1758057082035,-400.0,0.00032328,6]
[385826017,1758057082045,-400.0,0.00032328,6]
[385826018,1758057082054,-553.62,0.00032328,6]
[385826019,1758057082063,-467.85,0.00032328,6]
[385826020,1758057082073,-400.0,0.00032328,6]
[385826021,1758057082082,-836.09,0.00032328,6]
[385826022,1758057082092,-400.0,0.00032328,6]
[385826023,1758057082101,-400.0,0.00032328,6]
[385826024,1758057082111,-400.0,0.00032328,6]
[385826025,1758057082120,-1289.35,0.00032328,6]
[385826026,1758057082130,-400.0,0.00032328,6]
[385826027,1758057082139,-400.0,0.00032328,6]
[385826028,1758057082148,-430.5,0.00032328,6]
[385826029,1758057082158,-400.0,0.00032328,6]
[385826030,1758057082168,-400.0,0.00032328,6]
[385826031,1758057082177,-400.0,0.00032328,6]
[385826032,1758057082186,-441.74,0.00032328,6]
[385826033,1758057082196,-479.52,0.00032328,6]
[385826034,1758057082205,-400.0,0.00032328,6]
[385826035,1758057082215,-507.91,0.00032328,6]
[385826036,1758057082224,-400.0,0.00032328,6]
[385826037,1758057082234,-2216.47,0.00032328,6]
[385826038,1758057082244,-547.58,0.00032328,6]
[385826039,1758057082253,-400.0,0.00032328,6]
[385826040,1758057082263,-400.0,0.00032328,6]
[385826041,1758057082272,-400.0,0.00032328,6]
[385826042,1758057082283,-800.0,0.00032349,5]
[385826043,1758057082292,-500.0,0.00032362,7]
[385826044,1758057082302,-1100.0,0.00032389,7]
[385826045,1758057082312,-153.9,0.00032422,30]
[385826046,1758057082321,-173.1,0.00032422,30]
[385826047,1758057082331,-411.43,0.00032431,2]
[385826048,1758057082340,-500.0,0.00032466,7]
[385826049,1758057082350,-1100.0,0.00032495,7]
[385826050,1758057082359,-500.0,0.0003254,7]
[385826051,1758057082368,-541.76,0.00032548,2]
[385826052,1758057082378,-839.09243417,0.00032557,2]
[385826053,1758057082388,-11290.01160898,0.00032591,2]
[385826054,1758057082398,-300.0,0.00032601,10]
[385826055,1758057082407,-472.24,0.00032602,6]
[385826056,1758057082417,-400.0,0.00032602,6]
[385826057,1758057082426,-400.0,0.00032602,6]
[385826058,1758057082435,-400.0,0.00032602,6]
[385826059,1758057082445,-400.0,0.00032602,6]
[385826060,1758057082455,-400.0,0.00032602,6]
[385826061,1758057082464,-400.0,0.00032602,6]
[385826062,1758057082474,-400.0,0.00032602,6]
[385826063,1758057082483,-400.0,0.00032602,6]
[385826064,1758057082493,-400.0,0.00032602,6]
[385826065,1758057082502,-400.0,0.00032602,6]
[385826066,1758057082512,-400.0,0.00032602,6]
[385826067,1758057082522,-400.0,0.00032602,6]
[385826068,1758057082531,-400.0,0.00032602,6]
[385826069,1758057082542,-400.0,0.00032602,6]
[385826070,1758057082551,-400.0,0.00032602,6]
[385826071,1758057082561,-595.04,0.00032602,6]
[385826072,1758057082570,-400.0,0.00032602,6]
[385826073,1758057082580,-817.46,0.00032602,6]
[385826074,1758057082590,-400.0,0.00032602,6]
[385826075,1758057082600,-400.0,0.00032602,6]
[385826076,1758057082609,-426.72,0.00032602,6]
[385826077,1758057082619,-400.0,0.00032602,6]
[385826078,1758057082629,-400.0,0.00032602,6]
[385826079,1758057082638,-400.0,0.00032602,6]
[385826080,1758057082647,-400.0,0.00032602,6]
[385826081,1758057082657,-400.0,0.00032602,6]
[385826082,1758057082667,-400.0,0.00032602,6]
[385826083,1758057082676,-400.0,0.00032602,6]
[385826084,1758057082686,-223.47037283,0.00032602,6]
[385826085,1758057082695,-400.0,0.00032602,6]
[385826086,1758057082705,-400.0,0.00032602,6]
[385826087,1758057082714,-188.82856607,0.00032602,6]
[385826088,1758057082724,-466.82,0.00032602,6]
[385826089,1758057082734,-427.12946303,0.00032602,6]
[385826090,1758057082743,-436.46,0.00032602,6]
[385826091,1758057082754,-400.0,0.00032602,6]
[385826092,1758057082764,-400.0,0.00032602,6]
[385826093,1758057082774,-400.0,0.00032602,6]
[385826094,1758057082783,-400.0,0.00032602,6]
[385826095,1758057082793,-267.26249803,0.00032602,6]
[385826096,1758057082802,-400.0,0.00032602,6]
[385826097,1758057082812,-400.0,0.00032602,6]
[385826098,1758057082822,-444.47,0.00032602,6]
[385826099,1758057082831,-400.0,0.00032602,6]
[385826100,1758057082842,-400.0,0.00032602,6]
[385826101,1758057082852,-367.08835592,0.00032602,6]
[385826102,1758057082862,-400.0,0.00032602,6]
[385826103,1758057082873,-400.0,0.00032602,6]
[385826104,1758057082883,-217.62730921,0.00032602,6]
[385826105,1758057082892,-400.0,0.00032602,6]